[Event "Early Titled Tuesday Blitz | February 8 2022"]
[White "Deac, Bogdan-Daniel"]
[Black "Kamsky, Gata"]
[WhiteFideId "1226380"]
[BlackFideId "2000024"]
[WhiteElo "2646"]
[BlackElo "2645"]
[Result "1-0"]
[Round "09"]
[TimeControl "180+1"]
[Date "2022.02.08"]
[WhiteClock "0:00:05"]
[BlackClock "0:00:03"]

1. e4 {[%clk 0:03:00]}  e5 {[%clk 0:02:56]} 2. Nf3 {[%clk 0:03:01]}  Nc6 {[%clk 0:02:56]} 3. Bb5 {[%clk 0:03:01]}  Nf6 {[%clk 0:02:56]} 4. O-O {[%clk 0:03:02]}  Nxe4 {[%clk 0:02:55]} 5. Re1 {[%clk 0:03:02]}  Nd6 {[%clk 0:02:56]} 6. Nxe5 {[%clk 0:03:03]}  Be7 {[%clk 0:02:55]} 7. Bf1 {[%clk 0:03:03]}  Nxe5 {[%clk 0:02:54]} 8. Rxe5 {[%clk 0:03:04]}  O-O {[%clk 0:02:54]} 9. Nc3 {[%clk 0:03:05]}  Ne8 {[%clk 0:02:51]} 10. Nd5 {[%clk 0:03:05]}  Bd6 {[%clk 0:02:50]} 11. Re1 {[%clk 0:03:05]}  c6 {[%clk 0:02:50]} 12. Ne3 {[%clk 0:03:05]}  Bc7 {[%clk 0:02:48]} 13. Nf5 {[%clk 0:03:04]}  d5 {[%clk 0:02:47]} 14. Ne7+ {[%clk 0:03:04]}  Kh8 {[%clk 0:02:48]} 15. Nxc8 {[%clk 0:03:05]}  Rxc8 {[%clk 0:02:47]} 16. d3 {[%clk 0:03:03]}  f5 {[%clk 0:02:41]} 17. g3 {[%clk 0:03:02]}  Nf6 {[%clk 0:02:37]} 18. Qf3 {[%clk 0:02:59]}  Ng4 {[%clk 0:02:27]} 19. d4 {[%clk 0:02:50]}  Qf6 {[%clk 0:02:21]} 20. c3 {[%clk 0:02:43]}  Qg6 {[%clk 0:02:21]} 21. Bh3 {[%clk 0:02:21]}  Qh5 {[%clk 0:02:05]} 22. Kg2 {[%clk 0:02:15]}  g5 {[%clk 0:02:04]} 23. Bd2 {[%clk 0:02:00]}  Rf7 {[%clk 0:01:52]} 24. Re6 {[%clk 0:01:49]}  Rcf8 {[%clk 0:01:47]} 25. Rae1 {[%clk 0:01:48]}  Ne3+ {[%clk 0:01:20]} 26. Qxe3 {[%clk 0:01:01]}  g4 {[%clk 0:01:04]} 27. Rh6 {[%clk 0:00:55]}  gxh3+ {[%clk 0:01:02]} 28. Kg1 {[%clk 0:00:55]}  Qg4 {[%clk 0:00:56]} 29. Qe2 {[%clk 0:00:44]}  Rg8 {[%clk 0:00:31]} 30. f3 {[%clk 0:00:30]}  Qg7 {[%clk 0:00:25]} 31. Rxh3 {[%clk 0:00:28]}  f4 {[%clk 0:00:18]} 32. g4 {[%clk 0:00:28]}  Qg6 {[%clk 0:00:16]} 33. Qe6 {[%clk 0:00:18]}  Rf6 {[%clk 0:00:16]} 34. Qd7 {[%clk 0:00:14]}  Rf7 {[%clk 0:00:16]} 35. Re7 {[%clk 0:00:14]}  Rxe7 {[%clk 0:00:15]} 36. Qxe7 {[%clk 0:00:14]}  Rg7 {[%clk 0:00:14]} 37. Qe2 {[%clk 0:00:09]}  Bd6 {[%clk 0:00:13]} 38. Be1 {[%clk 0:00:08]}  Re7 {[%clk 0:00:12]} 39. Qd1 {[%clk 0:00:08]}  Qe6 {[%clk 0:00:07]} 40. Kf1 {[%clk 0:00:07]}  Re8 {[%clk 0:00:04]} 41. Bf2 {[%clk 0:00:06]}  Qg6 {[%clk 0:00:04]} 42. Rh5 {[%clk 0:00:06]}  b6 {[%clk 0:00:03]} 43. Rf5 {[%clk 0:00:05]} 1-0


[Site "https://www.chess.com"]

[Event "Early Titled Tuesday Blitz | February 8 2022"]
[White "Derraugh, Geordie"]
[Black "Sahil, Tickoo"]
[WhiteFideId "2603950"]
[BlackFideId "5019710"]
[WhiteElo "2116"]
[BlackElo "2099"]
[Result "0-1"]
[Round "09"]
[TimeControl "180+1"]
[Date "2022.02.08"]
[WhiteClock "0:00:02"]
[BlackClock "0:00:20"]

1. e4 {[%clk 0:02:02]}  c5 {[%clk 0:02:56]} 2. c3 {[%clk 0:02:01]}  d5 {[%clk 0:02:47]} 3. exd5 {[%clk 0:02:01]}  Nf6 {[%clk 0:02:47]} 4. d4 {[%clk 0:01:59]}  Nxd5 {[%clk 0:02:47]} 5. Nf3 {[%clk 0:01:58]}  e6 {[%clk 0:02:46]} 6. Bd3 {[%clk 0:01:57]}  cxd4 {[%clk 0:02:45]} 7. cxd4 {[%clk 0:01:57]}  Bb4+ {[%clk 0:02:45]} 8. Bd2 {[%clk 0:01:56]}  Bxd2+ {[%clk 0:02:45]} 9. Nbxd2 {[%clk 0:01:55]}  Nc6 {[%clk 0:02:45]} 10. O-O {[%clk 0:01:55]}  O-O {[%clk 0:02:45]} 11. Rc1 {[%clk 0:01:54]}  Nce7 {[%clk 0:02:40]} 12. Re1 {[%clk 0:01:54]}  Ng6 {[%clk 0:02:40]} 13. Bb1 {[%clk 0:01:53]}  Bd7 {[%clk 0:02:39]} 14. Ne4 {[%clk 0:01:53]}  Rc8 {[%clk 0:02:29]} 15. Rxc8 {[%clk 0:01:52]}  Qxc8 {[%clk 0:02:27]} 16. h4 {[%clk 0:01:51]}  Bc6 {[%clk 0:02:18]} 17. h5 {[%clk 0:01:43]}  Nge7 {[%clk 0:02:18]} 18. h6 {[%clk 0:01:38]}  g6 {[%clk 0:02:17]} 19. Qd2 {[%clk 0:01:32]}  Nf5 {[%clk 0:02:15]} 20. Ne5 {[%clk 0:01:14]}  Qc7 {[%clk 0:01:56]} 21. Ng5 {[%clk 0:00:22]}  Qe7 {[%clk 0:01:50]} 22. Nexf7 {[%clk 0:00:18]}  Rxf7 {[%clk 0:01:45]} 23. Rxe6 {[%clk 0:00:18]}  Qf8 {[%clk 0:01:40]} 24. Nxf7 {[%clk 0:00:17]}  Qxf7 {[%clk 0:01:40]} 25. Re5 {[%clk 0:00:15]}  Nfe7 {[%clk 0:01:32]} 26. Qg5 {[%clk 0:00:14]}  Kf8 {[%clk 0:01:25]} 27. Be4 {[%clk 0:00:14]}  Qf6 {[%clk 0:01:21]} 28. Qg3 {[%clk 0:00:08]}  Qf7 {[%clk 0:01:16]} 29. a3 {[%clk 0:00:08]}  a6 {[%clk 0:01:13]} 30. b4 {[%clk 0:00:08]}  Nf6 {[%clk 0:01:10]} 31. Bxc6 {[%clk 0:00:08]}  Nxc6 {[%clk 0:01:11]} 32. d5 {[%clk 0:00:07]}  Nxe5 {[%clk 0:01:11]} 33. Qxe5 {[%clk 0:00:06]}  Nxd5 {[%clk 0:01:11]} 34. Qh8+ {[%clk 0:00:06]}  Ke7 {[%clk 0:01:11]} 35. Qe5+ {[%clk 0:00:06]}  Kd7 {[%clk 0:01:10]} 36. Qb8 {[%clk 0:00:06]}  Kc6 {[%clk 0:01:01]} 37. Qc8+ {[%clk 0:00:06]}  Nc7 {[%clk 0:00:55]} 38. Qh8 {[%clk 0:00:06]}  Qd7 {[%clk 0:00:49]} 39. Qg7 {[%clk 0:00:06]}  Ne6 {[%clk 0:00:44]} 40. Qc3+ {[%clk 0:00:05]}  Kd6 {[%clk 0:00:44]} 41. Qg3+ {[%clk 0:00:05]}  Ke7 {[%clk 0:00:44]} 42. Qe3 {[%clk 0:00:05]}  Qd1+ {[%clk 0:00:43]} 43. Kh2 {[%clk 0:00:05]}  Qh5+ {[%clk 0:00:42]} 44. Kg1 {[%clk 0:00:05]}  Qd1+ {[%clk 0:00:40]} 45. Kh2 {[%clk 0:00:06]}  Qd6+ {[%clk 0:00:41]} 46. g3 {[%clk 0:00:06]}  b5 {[%clk 0:00:41]} 47. Kg1 {[%clk 0:00:06]}  Qd7 {[%clk 0:00:39]} 48. Qe5 {[%clk 0:00:05]}  Qd4 {[%clk 0:00:34]} 49. Qb8 {[%clk 0:00:04]}  Qd1+ {[%clk 0:00:33]} 50. Kg2 {[%clk 0:00:05]}  Qd5+ {[%clk 0:00:34]} 51. Kg1 {[%clk 0:00:05]}  Qd2 {[%clk 0:00:27]} 52. Qa7+ {[%clk 0:00:04]}  Kf6 {[%clk 0:00:26]} 53. Qxh7 {[%clk 0:00:03]}  Qc1+ {[%clk 0:00:25]} 54. Kh2 {[%clk 0:00:02]}  Qg5 {[%clk 0:00:24]} 55. Qh8+ {[%clk 0:00:02]}  Kf5 {[%clk 0:00:24]} 56. h7 {[%clk 0:00:02]}  Qh6+ {[%clk 0:00:24]} 57. Kg1 {[%clk 0:00:02]}  Qc1+ {[%clk 0:00:23]} 58. Kg2 {[%clk 0:00:02]}  Qc6+ {[%clk 0:00:23]} 59. Kh2 {[%clk 0:00:02]}  Qf3 {[%clk 0:00:20]} 0-1


[Site "https://www.chess.com"]

[Event "Early Titled Tuesday Blitz | February 8 2022"]
[White "Dylag, Emilia"]
[Black "Johnson, Ben"]
[WhiteFideId "21805172"]
[BlackFideId "2010917"]
[WhiteElo "1932"]
[BlackElo "2154"]
[Result "1-0"]
[Round "09"]
[TimeControl "180+1"]
[Date "2022.02.08"]
[WhiteClock "0:00:15"]
[BlackClock "0:00:06"]

1. d4 {[%clk 0:03:00]}  Nf6 {[%clk 0:02:58]} 2. c4 {[%clk 0:02:58]}  e6 {[%clk 0:02:58]} 3. Nf3 {[%clk 0:02:56]}  d5 {[%clk 0:02:57]} 4. g3 {[%clk 0:02:56]}  Bb4+ {[%clk 0:02:48]} 5. Nbd2 {[%clk 0:02:49]}  dxc4 {[%clk 0:02:44]} 6. Bg2 {[%clk 0:02:46]}  O-O {[%clk 0:02:40]} 7. O-O {[%clk 0:02:45]}  b5 {[%clk 0:02:36]} 8. Ne5 {[%clk 0:02:32]}  Nd5 {[%clk 0:02:36]} 9. e4 {[%clk 0:02:31]}  Nb6 {[%clk 0:02:33]} 10. Ndf3 {[%clk 0:02:25]}  Bb7 {[%clk 0:02:28]} 11. Qe2 {[%clk 0:02:22]}  a5 {[%clk 0:02:20]} 12. Bf4 {[%clk 0:02:05]}  f6 {[%clk 0:02:05]} 13. Ng4 {[%clk 0:02:03]}  h5 {[%clk 0:02:02]} 14. Ne3 {[%clk 0:01:57]}  Bxe4 {[%clk 0:01:56]} 15. Nxc4 {[%clk 0:01:57]}  Bxf3 {[%clk 0:01:51]} 16. Bxf3 {[%clk 0:01:57]}  bxc4 {[%clk 0:01:46]} 17. Bxa8 {[%clk 0:01:53]}  Nxa8 {[%clk 0:01:45]} 18. Qxe6+ {[%clk 0:01:53]}  Kh8 {[%clk 0:01:41]} 19. Qxc4 {[%clk 0:01:52]}  Bd6 {[%clk 0:01:40]} 20. Be3 {[%clk 0:01:45]}  Nb6 {[%clk 0:01:36]} 21. Qe2 {[%clk 0:01:43]}  Qe8 {[%clk 0:01:23]} 22. Rac1 {[%clk 0:01:43]}  Nd5 {[%clk 0:01:20]} 23. Rfe1 {[%clk 0:01:38]}  Nxe3 {[%clk 0:01:09]} 24. Qf3 {[%clk 0:01:38]}  Qg6 {[%clk 0:00:44]} 25. Rxe3 {[%clk 0:01:35]}  Qg4 {[%clk 0:00:44]} 26. Qxg4 {[%clk 0:01:20]}  hxg4 {[%clk 0:00:45]} 27. Rb3 {[%clk 0:01:14]}  Nd7 {[%clk 0:00:40]} 28. Rb5 {[%clk 0:01:14]}  a4 {[%clk 0:00:33]} 29. a3 {[%clk 0:01:13]}  f5 {[%clk 0:00:27]} 30. Rc4 {[%clk 0:01:02]}  g6 {[%clk 0:00:27]} 31. Rxa4 {[%clk 0:01:00]}  Re8 {[%clk 0:00:24]} 32. Kg2 {[%clk 0:00:57]}  Re2 {[%clk 0:00:22]} 33. Ra8+ {[%clk 0:00:55]}  Kg7 {[%clk 0:00:21]} 34. a4 {[%clk 0:00:41]}  Nf6 {[%clk 0:00:21]} 35. Kf1 {[%clk 0:00:31]}  Rc2 {[%clk 0:00:18]} 36. a5 {[%clk 0:00:26]}  Ne4 {[%clk 0:00:18]} 37. a6 {[%clk 0:00:25]}  Rxf2+ {[%clk 0:00:18]} 38. Ke1 {[%clk 0:00:25]}  Rxh2 {[%clk 0:00:16]} 39. a7 {[%clk 0:00:24]}  Rh1+ {[%clk 0:00:16]} 40. Ke2 {[%clk 0:00:24]}  Nxg3+ {[%clk 0:00:12]} 41. Kd3 {[%clk 0:00:25]}  Ra1 {[%clk 0:00:13]} 42. Rb7 {[%clk 0:00:22]}  Ne4 {[%clk 0:00:12]} 43. Re8 {[%clk 0:00:20]}  g3 {[%clk 0:00:10]} 44. a8=Q {[%clk 0:00:18]}  Rxa8 {[%clk 0:00:10]} 45. Rxa8 {[%clk 0:00:19]}  g2 {[%clk 0:00:11]} 46. Ra1 {[%clk 0:00:19]}  Bh2 {[%clk 0:00:09]} 47. b4 {[%clk 0:00:19]}  g1=Q {[%clk 0:00:09]} 48. Rxg1 {[%clk 0:00:19]}  Bxg1 {[%clk 0:00:10]} 49. Rxc7+ {[%clk 0:00:19]}  Kf6 {[%clk 0:00:10]} 50. b5 {[%clk 0:00:20]}  g5 {[%clk 0:00:10]} 51. b6 {[%clk 0:00:20]}  Ke6 {[%clk 0:00:09]} 52. b7 {[%clk 0:00:19]}  Bh2 {[%clk 0:00:08]} 53. b8=Q {[%clk 0:00:19]}  Bxc7 {[%clk 0:00:08]} 54. Qxc7 {[%clk 0:00:20]}  Nd6 {[%clk 0:00:08]} 55. Qc1 {[%clk 0:00:18]}  Kf6 {[%clk 0:00:07]} 56. d5 {[%clk 0:00:17]}  Ne4 {[%clk 0:00:07]} 57. Kd4 {[%clk 0:00:16]}  g4 {[%clk 0:00:07]} 58. Qf4 {[%clk 0:00:16]}  Kg6 {[%clk 0:00:07]} 59. d6 {[%clk 0:00:15]}  Nxd6 {[%clk 0:00:06]} 60. Qxd6+ {[%clk 0:00:14]}  Kg5 {[%clk 0:00:07]} 61. Qg3 {[%clk 0:00:15]}  f4 {[%clk 0:00:08]} 62. Qg2 {[%clk 0:00:15]}  g3 {[%clk 0:00:06]} 63. Qf3 {[%clk 0:00:15]}  Kf5 {[%clk 0:00:07]} 64. Kd3 {[%clk 0:00:14]}  Ke5 {[%clk 0:00:06]} 65. Ke2 {[%clk 0:00:14]}  Kf5 {[%clk 0:00:07]} 66. Kf1 {[%clk 0:00:14]}  Ke5 {[%clk 0:00:07]} 67. Kg2 {[%clk 0:00:15]}  Kf5 {[%clk 0:00:08]} 68. Kh3 {[%clk 0:00:15]}  Kg5 {[%clk 0:00:09]} 69. Qe4 {[%clk 0:00:14]}  g2 {[%clk 0:00:06]} 70. Qxg2+ {[%clk 0:00:14]}  Kh5 {[%clk 0:00:06]} 71. Qf3+ {[%clk 0:00:14]}  Kg5 {[%clk 0:00:06]} 72. Qg4+ {[%clk 0:00:15]} 1-0


[Site "https://www.chess.com"]

[Event "Early Titled Tuesday Blitz | February 8 2022"]
[White "Fawole, John Oyeyemi"]
[Black "Sovetbekova, Nurai"]
[WhiteFideId "8501319"]
[BlackFideId "13801910"]
[WhiteElo "2091"]
[BlackElo "1545"]
[Result "1-0"]
[Round "09"]
[TimeControl "180+1"]
[Date "2022.02.08"]
[WhiteClock "0:00:10"]
[BlackClock "0:00:02"]

1. e4 {[%clk 0:02:58]}  c5 {[%clk 0:02:57]} 2. Nf3 {[%clk 0:02:58]}  d6 {[%clk 0:02:58]} 3. d4 {[%clk 0:02:57]}  cxd4 {[%clk 0:02:58]} 4. Nxd4 {[%clk 0:02:57]}  Nf6 {[%clk 0:02:59]} 5. Nc3 {[%clk 0:02:55]}  a6 {[%clk 0:02:59]} 6. Be2 {[%clk 0:02:54]}  e6 {[%clk 0:02:52]} 7. O-O {[%clk 0:02:51]}  Be7 {[%clk 0:02:51]} 8. Be3 {[%clk 0:02:47]}  b5 {[%clk 0:02:50]} 9. Bf3 {[%clk 0:02:46]}  Bb7 {[%clk 0:02:24]} 10. e5 {[%clk 0:02:40]}  Nd5 {[%clk 0:02:20]} 11. Nxd5 {[%clk 0:02:37]}  exd5 {[%clk 0:02:18]} 12. e6 {[%clk 0:02:34]}  O-O {[%clk 0:01:55]} 13. exf7+ {[%clk 0:02:33]}  Rxf7 {[%clk 0:01:54]} 14. Bg4 {[%clk 0:02:32]}  Kh8 {[%clk 0:01:50]} 15. Be6 {[%clk 0:02:25]}  Rf6 {[%clk 0:01:47]} 16. f4 {[%clk 0:02:19]}  Nd7 {[%clk 0:01:42]} 17. f5 {[%clk 0:02:17]}  Nc5 {[%clk 0:01:22]} 18. Rf3 {[%clk 0:01:57]}  Qe8 {[%clk 0:00:51]} 19. Rh3 {[%clk 0:01:55]}  Nxe6 {[%clk 0:00:41]} 20. Nxe6 {[%clk 0:01:45]}  Rxf5 {[%clk 0:00:30]} 21. Nc7 {[%clk 0:01:40]}  Qc6 {[%clk 0:00:17]} 22. Nxa8 {[%clk 0:01:05]}  d4 {[%clk 0:00:16]} 23. Rg3 {[%clk 0:00:57]}  dxe3 {[%clk 0:00:14]} 24. Qd3 {[%clk 0:00:26]}  Rf2 {[%clk 0:00:07]} 25. Qxe3 {[%clk 0:00:14]}  Rxg2+ {[%clk 0:00:07]} 26. Kf1 {[%clk 0:00:14]}  Qc4+ {[%clk 0:00:03]} 27. Ke1 {[%clk 0:00:12]}  Rxg3 {[%clk 0:00:02]} 28. hxg3 {[%clk 0:00:10]} 1-0


[Site "https://www.chess.com"]

[Event "Early Titled Tuesday Blitz | February 8 2022"]
[White "Gabdrakhmanov, Azat"]
[Black "Mirzoev, Azer"]
[WhiteFideId "34189197"]
[BlackFideId "13400304"]
[WhiteElo "2279"]
[BlackElo "2525"]
[Result "0-1"]
[Round "09"]
[TimeControl "180+1"]
[Date "2022.02.08"]
[WhiteClock "0:00:04"]
[BlackClock "0:00:50"]

1. e4 {[%clk 0:03:00]}  Nf6 {[%clk 0:03:00]} 2. e5 {[%clk 0:03:00]}  Nd5 {[%clk 0:03:00]} 3. d4 {[%clk 0:03:01]}  d6 {[%clk 0:03:00]} 4. Nf3 {[%clk 0:03:02]}  dxe5 {[%clk 0:03:00]} 5. Nxe5 {[%clk 0:03:02]}  Nd7 {[%clk 0:02:59]} 6. Nxf7 {[%clk 0:02:50]}  Kxf7 {[%clk 0:02:58]} 7. Qh5+ {[%clk 0:02:50]}  Ke6 {[%clk 0:02:58]} 8. c4 {[%clk 0:02:50]}  N5f6 {[%clk 0:02:57]} 9. d5+ {[%clk 0:02:47]}  Kd6 {[%clk 0:02:57]} 10. Bf4+ {[%clk 0:02:38]}  e5 {[%clk 0:02:56]} 11. dxe6+ {[%clk 0:02:38]}  Kxe6 {[%clk 0:02:56]} 12. Qf3 {[%clk 0:02:31]}  Kf7 {[%clk 0:02:53]} 13. Nc3 {[%clk 0:02:30]}  Nc5 {[%clk 0:02:44]} 14. b4 {[%clk 0:02:00]}  Bg4 {[%clk 0:02:37]} 15. Qe3 {[%clk 0:01:57]}  Ne6 {[%clk 0:02:19]} 16. c5 {[%clk 0:01:36]}  Qd4 {[%clk 0:02:13]} 17. f3 {[%clk 0:01:12]}  Qxf4 {[%clk 0:01:48]} 18. Qxf4 {[%clk 0:01:08]}  Nxf4 {[%clk 0:01:49]} 19. fxg4 {[%clk 0:01:09]}  Re8+ {[%clk 0:01:47]} 20. Kd2 {[%clk 0:01:08]}  N4d5 {[%clk 0:01:36]} 21. Bc4 {[%clk 0:01:07]}  c6 {[%clk 0:01:36]} 22. Rhf1 {[%clk 0:01:02]}  Kg6 {[%clk 0:01:35]} 23. Bd3+ {[%clk 0:01:00]}  Kg5 {[%clk 0:01:31]} 24. Rf5+ {[%clk 0:00:49]}  Kxg4 {[%clk 0:01:30]} 25. h3+ {[%clk 0:00:49]}  Kh4 {[%clk 0:01:29]} 26. g3+ {[%clk 0:00:37]}  Kxh3 {[%clk 0:01:20]} 27. Rh1+ {[%clk 0:00:37]}  Kg2 {[%clk 0:01:19]} 28. Rff1 {[%clk 0:00:22]}  g6 {[%clk 0:01:05]} 29. Rfg1+ {[%clk 0:00:14]}  Kf3 {[%clk 0:01:04]} 30. Rf1+ {[%clk 0:00:15]}  Kxg3 {[%clk 0:01:03]} 31. Rhg1+ {[%clk 0:00:11]}  Kh4 {[%clk 0:00:54]} 32. Nxd5 {[%clk 0:00:08]}  Nxd5 {[%clk 0:00:54]} 33. Rg2 {[%clk 0:00:08]}  Bh6+ {[%clk 0:00:50]} 34. Kc2 {[%clk 0:00:04]}  Ne3+ {[%clk 0:00:50]} 0-1


[Site "https://www.chess.com"]

[Event "Early Titled Tuesday Blitz | February 8 2022"]
[White "Gabrielian, Artur"]
[Black "Vlassov, Nikolai"]
[WhiteFideId "4131002"]
[BlackFideId "4103360"]
[WhiteElo "2440"]
[BlackElo "2407"]
[Result "1-0"]
[Round "09"]
[TimeControl "180+1"]
[Date "2022.02.08"]
[WhiteClock "0:01:56"]
[BlackClock "0:01:06"]

1. e4 {[%clk 0:03:00]}  c5 {[%clk 0:02:56]} 2. Nc3 {[%clk 0:03:00]}  g6 {[%clk 0:02:56]} 3. d3 {[%clk 0:02:59]}  Bg7 {[%clk 0:02:56]} 4. g3 {[%clk 0:02:57]}  Nc6 {[%clk 0:02:56]} 5. Bg2 {[%clk 0:02:57]}  d6 {[%clk 0:02:57]} 6. f4 {[%clk 0:02:57]}  Rb8 {[%clk 0:02:50]} 7. Nf3 {[%clk 0:02:55]}  Nf6 {[%clk 0:02:48]} 8. O-O {[%clk 0:02:55]}  O-O {[%clk 0:02:48]} 9. h3 {[%clk 0:02:55]}  b5 {[%clk 0:02:47]} 10. Be3 {[%clk 0:02:55]}  b4 {[%clk 0:02:47]} 11. Ne2 {[%clk 0:02:54]}  Nd7 {[%clk 0:02:36]} 12. Rb1 {[%clk 0:02:53]}  Qa5 {[%clk 0:02:34]} 13. Qd2 {[%clk 0:02:44]}  Qxa2 {[%clk 0:02:29]} 14. b3 {[%clk 0:02:44]}  a5 {[%clk 0:02:22]} 15. e5 {[%clk 0:02:38]}  dxe5 {[%clk 0:02:04]} 16. Ra1 {[%clk 0:02:37]}  Qb2 {[%clk 0:01:50]} 17. Rfb1 {[%clk 0:02:29]}  exf4 {[%clk 0:01:43]} 18. Rxb2 {[%clk 0:02:28]}  Bxb2 {[%clk 0:01:43]} 19. Rf1 {[%clk 0:02:11]}  fxe3 {[%clk 0:01:42]} 20. Qxe3 {[%clk 0:02:12]}  e5 {[%clk 0:01:27]} 21. Qh6 {[%clk 0:02:04]}  f6 {[%clk 0:01:23]} 22. Ng5 {[%clk 0:02:02]}  Rf7 {[%clk 0:01:07]} 23. Nxf7 {[%clk 0:01:59]}  Kxf7 {[%clk 0:01:06]} 24. Qxh7+ {[%clk 0:01:57]}  Ke6 {[%clk 0:01:06]} 25. Bxc6 {[%clk 0:01:56]} 1-0


[Site "https://www.chess.com"]

[Event "Early Titled Tuesday Blitz | February 8 2022"]
[White "Gaehwiler, Gabriel"]
[Black "Chernomordik, Pavel"]
[WhiteFideId "1314530"]
[BlackFideId "2804530"]
[WhiteElo "2383"]
[BlackElo "2249"]
[Result "1-0"]
[Round "09"]
[TimeControl "180+1"]
[Date "2022.02.08"]
[WhiteClock "0:00:15"]
[BlackClock "0:00:55"]

1. Nf3 {[%clk 0:03:00]}  g6 {[%clk 0:02:59]} 2. g3 {[%clk 0:03:00]}  Bg7 {[%clk 0:02:59]} 3. Bg2 {[%clk 0:03:01]}  e5 {[%clk 0:02:58]} 4. O-O {[%clk 0:03:02]}  Nc6 {[%clk 0:02:58]} 5. d3 {[%clk 0:03:02]}  d6 {[%clk 0:02:57]} 6. Nbd2 {[%clk 0:03:03]}  Be6 {[%clk 0:02:56]} 7. e4 {[%clk 0:03:04]}  h6 {[%clk 0:02:55]} 8. a3 {[%clk 0:03:04]}  Qd7 {[%clk 0:02:53]} 9. b4 {[%clk 0:03:04]}  Bh3 {[%clk 0:02:50]} 10. Nc4 {[%clk 0:03:03]}  Bxg2 {[%clk 0:02:49]} 11. Kxg2 {[%clk 0:03:03]}  Nf6 {[%clk 0:02:42]} 12. Bb2 {[%clk 0:03:03]}  O-O {[%clk 0:02:41]} 13. h3 {[%clk 0:03:02]}  Nh7 {[%clk 0:02:36]} 14. Ne3 {[%clk 0:02:47]}  Nd4 {[%clk 0:02:26]} 15. c3 {[%clk 0:02:40]}  Nxf3 {[%clk 0:02:25]} 16. Qxf3 {[%clk 0:02:41]}  c6 {[%clk 0:02:25]} 17. h4 {[%clk 0:02:30]}  f5 {[%clk 0:02:22]} 18. exf5 {[%clk 0:02:22]}  gxf5 {[%clk 0:02:22]} 19. Qh5 {[%clk 0:02:22]}  f4 {[%clk 0:02:18]} 20. Ng4 {[%clk 0:02:17]}  Qe6 {[%clk 0:02:17]} 21. Nh2 {[%clk 0:02:04]}  Nf6 {[%clk 0:02:15]} 22. Qg6 {[%clk 0:02:02]}  Qd5+ {[%clk 0:02:11]} 23. Kg1 {[%clk 0:01:58]}  e4 {[%clk 0:02:02]} 24. c4 {[%clk 0:01:22]}  Qxd3 {[%clk 0:02:01]} 25. Ng4 {[%clk 0:01:20]}  Ne8 {[%clk 0:01:35]} 26. Nxh6+ {[%clk 0:01:00]}  Kh8 {[%clk 0:01:34]} 27. Rad1 {[%clk 0:00:57]}  Qxc4 {[%clk 0:01:26]} 28. Bxg7+ {[%clk 0:00:29]}  Nxg7 {[%clk 0:01:25]} 29. Rxd6 {[%clk 0:00:23]}  fxg3 {[%clk 0:01:12]} 30. Rd7 {[%clk 0:00:23]}  gxf2+ {[%clk 0:01:11]} 31. Kg2 {[%clk 0:00:20]}  Qc3 {[%clk 0:01:08]} 32. Nf7+ {[%clk 0:00:17]}  Rxf7 {[%clk 0:01:08]} 33. Rxf7 {[%clk 0:00:17]}  Qe5 {[%clk 0:01:01]} 34. h5 {[%clk 0:00:15]}  Nxh5 {[%clk 0:00:55]} 35. Rh7# {[%clk 0:00:15]} 1-0


[Site "https://www.chess.com"]

[Event "Early Titled Tuesday Blitz | February 8 2022"]
[White "Garriga Cazorla, Pere"]
[Black "Hansen, Eric"]
[WhiteFideId "32011601"]
[BlackFideId "2606771"]
[WhiteElo "2458"]
[BlackElo "2568"]
[Result "0-1"]
[Round "09"]
[TimeControl "180+1"]
[Date "2022.02.08"]
[WhiteClock "0:00:03"]
[BlackClock "0:00:08"]

1. Nf3 {[%clk 0:03:00]}  Nf6 {[%clk 0:02:55]} 2. c4 {[%clk 0:03:00]}  g6 {[%clk 0:02:56]} 3. Nc3 {[%clk 0:02:59]}  d5 {[%clk 0:02:56]} 4. cxd5 {[%clk 0:02:59]}  Nxd5 {[%clk 0:02:57]} 5. h4 {[%clk 0:02:57]}  Bg7 {[%clk 0:02:57]} 6. h5 {[%clk 0:02:57]}  Nc6 {[%clk 0:02:58]} 7. h6 {[%clk 0:02:53]}  Bf6 {[%clk 0:02:55]} 8. Ne4 {[%clk 0:02:53]}  Bf5 {[%clk 0:02:55]} 9. Nxf6+ {[%clk 0:02:52]}  Nxf6 {[%clk 0:02:54]} 10. d3 {[%clk 0:02:52]}  Qd6 {[%clk 0:02:54]} 11. a3 {[%clk 0:02:48]}  O-O-O {[%clk 0:02:53]} 12. b4 {[%clk 0:02:36]}  e5 {[%clk 0:02:49]} 13. b5 {[%clk 0:02:29]}  Nd4 {[%clk 0:02:48]} 14. Qa4 {[%clk 0:02:27]}  Kb8 {[%clk 0:02:45]} 15. Bb2 {[%clk 0:02:20]}  Rhe8 {[%clk 0:02:44]} 16. Rc1 {[%clk 0:02:10]}  Ng4 {[%clk 0:02:11]} 17. Nd2 {[%clk 0:00:59]}  Bd7 {[%clk 0:02:07]} 18. e3 {[%clk 0:00:49]}  Bxb5 {[%clk 0:01:51]} 19. Qa5 {[%clk 0:00:49]}  b6 {[%clk 0:01:45]} 20. Qc3 {[%clk 0:00:47]}  f5 {[%clk 0:01:40]} 21. a4 {[%clk 0:00:36]}  Ba6 {[%clk 0:01:37]} 22. Ba3 {[%clk 0:00:31]}  Qd7 {[%clk 0:01:34]} 23. Nc4 {[%clk 0:00:20]}  Qxa4 {[%clk 0:01:15]} 24. Qb2 {[%clk 0:00:19]}  Qb3 {[%clk 0:00:52]} 25. exd4 {[%clk 0:00:13]}  exd4+ {[%clk 0:00:52]} 26. Kd2 {[%clk 0:00:11]}  Qa4 {[%clk 0:00:32]} 27. Be2 {[%clk 0:00:09]}  Nxf2 {[%clk 0:00:28]} 28. Rhe1 {[%clk 0:00:10]}  Bxc4 {[%clk 0:00:20]} 29. Rxc4 {[%clk 0:00:09]}  Qa5+ {[%clk 0:00:18]} 30. Bb4 {[%clk 0:00:08]}  Qe5 {[%clk 0:00:19]} 31. Kc1 {[%clk 0:00:08]}  a5 {[%clk 0:00:10]} 32. Bf3 {[%clk 0:00:02]}  Qf4+ {[%clk 0:00:08]} 33. Bd2 {[%clk 0:00:02]}  Rxe1+ {[%clk 0:00:06]} 34. Kc2 {[%clk 0:00:02]}  Qe5 {[%clk 0:00:06]} 35. Rxc7 {[%clk 0:00:01]}  Qxc7+ {[%clk 0:00:06]} 36. Kb3 {[%clk 0:00:01]}  Nxd3 {[%clk 0:00:05]} 37. Qc2 {[%clk 0:00:01]}  Nc5+ {[%clk 0:00:05]} 38. Ka2 {[%clk 0:00:01]}  Re3 {[%clk 0:00:05]} 39. Bxe3 {[%clk 0:00:01]}  dxe3 {[%clk 0:00:05]} 40. Qc4 {[%clk 0:00:02]}  Rd2+ {[%clk 0:00:05]} 41. Ka3 {[%clk 0:00:03]}  Ka7 {[%clk 0:00:06]} 42. Qg8 {[%clk 0:00:03]}  Rd3+ {[%clk 0:00:06]} 43. Kb2 {[%clk 0:00:03]}  Rd8 {[%clk 0:00:07]} 44. Qf7 {[%clk 0:00:03]}  Qxf7 {[%clk 0:00:08]} 0-1


[Site "https://www.chess.com"]